Cogmind - Beta 14 @@@ ROGUE MODE // 2024.12.07 @ 04:33:33 Player: Ayre223 Result: Destroyed by X-77 Beamer with Gatling Laser Performance ------------- Evolutions (6) 3000 Regions Visited (10) 2000 Robots Destroyed (96) 480 Value Destroyed (2908) 2908 Prototype IDs (2) 40 Alien Tech Used (0) 0 Bonus (26) 26 TOTAL SCORE: 8454 Bonus ------- High Alert Combat Kills 26 Cogmind --------- Core Integrity 0/1150 Matter 106/300 Energy 100/100 System Corruption 1% Temperature Cool (24) Movement Core (50) Location -4/Factory Parts ------- > --- POWER (2) -------- (None) > --- PROPULSION (6) --- (None) > --- UTILITY (7) ------ Enhanced Optical Array > --- WEAPON (4) ------- (None) > --- INVENTORY (5) ---- Improved Heat Sink Improved Sensor Array Advanced Signal Interpreter Flak Gun Peak State ------------ > --- POWER ------------ Light Angular Momentum Engine Fission Core > --- PROPULSION ------- Heavy Treads Heavy Treads Heavy Treads > --- UTILITY ---------- Advanced Cooling System Large Storage Unit Enhanced Optical Array Advanced Sensor Array Advanced Signal Interpreter Graphene Brace Improved Shield Generator > --- WEAPON ----------- Gatling Laser Magnetic Acceleration Cannon Heavy Flak Cannon Enhanced Gauss Cannon > --- INVENTORY -------- Armored Medium Treads Improved Heat Sink Improved Heat Sink Improved Sensor Array Advanced Signal Interpreter Shock Rifle Beam Rifle Heavy Particle Cannon Heavy Particle Cannon Flak Gun [Rating: 102] Favorites ----------- Power Fission Core Engine Reinforced Ion Engine Power Core Fission Core Propulsion Light Treads Treads Light Treads Leg Aluminum Leg Utility Large Storage Unit Device Graphene Brace Storage Large Storage Unit Processor Improved Signal Interpreter Weapon Gauss Rifle Energy Gun Beam Rifle Energy Cannon Heavy Particle Cannon Ballistic Gun Gauss Rifle Ballistic Cannon Heavy Flak Cannon Build | -11 -10 -9 -9 -8 -7 -7 -7 -6 -5 -4 ------- Run | Yrd Mat Mat Min Mat Fac Low Low Fac Fac Fac Slots Evolved 12 | . . 2 . 2 2 . . 2 2 2 Power 1 | . . . . . . . . . 1 . Propulsion 4 | . . 1 . 1 . . . . . 2 Utility 5 | . . 1 . . 1 . . 2 1 . Weapon 2 | . . . . 1 1 . . . . . Parts Attached 86 | 5 7 18 2 15 4 7 . 10 11 7 Power 11 | . 2 4 1 . . 1 . 2 1 . Engine 10 | . 2 4 1 . . 1 . 1 1 . Core 1 | . . . . . . . . 1 . . Reactor . | . . . . . . . . . . . Propulsion 24 | 2 2 4 . 7 . 2 . 1 4 2 Treads 22 | . 2 4 . 7 . 2 . 1 4 2 Leg 2 | 2 . . . . . . . . . . Wheel . | . . . . . . . . . . . Hover . | . . . . . . . . . . . Flight . | . . . . . . . . . . . Utility 19 | 1 2 4 . 2 2 1 . 2 4 1 Device 12 | . 1 3 . 1 2 . . 2 2 1 Storage 3 | 1 1 . . 1 . . . . . . Processor 4 | . . 1 . . . 1 . . 2 . Hackware . | . . . . . . . . . . . Protection . | . . . . . . . . . . . Artifact . | . . . . . . . . . . . Weapon 32 | 2 1 6 1 6 2 3 . 5 2 4 Energy Gun 9 | 1 . 2 . 1 . 2 . . 1 2 Energy Cannon 5 | . . 1 1 . 1 . . . . 2 Ballistic Gun 11 | 1 1 3 . 4 . 1 . 1 . . Ballistic Cannon 7 | . . . . 1 1 . . 4 1 . Launcher . | . . . . . . . . . . . Special Weapon . | . . . . . . . . . . . Impact Weapon . | . . . . . . . . . . . Slashing Weapon . | . . . . . . . . . . . Piercing Weapon . | . . . . . . . . . . . Special Melee Weapon . | . . . . . . . . . . . Unidentified Prototypes 2 | . . . . . . 2 . . . . Parts Lost 33 | . 1 5 . 3 1 2 . . 1 20 Power 2 | . . . . . . . . . . 2 Propulsion 12 | . 1 2 . 3 1 1 . . . 4 Utility 8 | . . 2 . . . . . . . 6 Weapon 11 | . . 1 . . . 1 . . 1 8 Highest Loss Streak 20 | . 1 2 . 1 1 1 . . 1 20 To Critical Strikes . | . . . . . . . . . . . Average Slot Usage (%) 95 | . 88 91 100 98 97 98 100 99 98 67 Engine 6 | . 9 10 11 9 7 7 7 1 5 4 Core 1 | . . . . . . . . 4 5 3 Treads 26 | . 18 27 33 34 28 28 30 25 21 11 Device 17 | . 8 17 11 9 15 15 15 26 23 16 Storage 7 | . 14 11 11 9 7 7 7 6 5 4 Processor 6 | . . 2 11 9 7 7 7 6 11 9 Energy Gun 4 | . 6 3 11 5 7 7 15 4 . 3 Energy Cannon 3 | . . 4 11 1 7 7 7 2 . . Ballistic Gun 10 | . 21 14 . 18 10 14 7 3 4 . Ballistic Cannon 6 | . . . . 1 4 . . 13 17 10 Peak Build Rating 102 | 5 7 13 12 25 32 38 35 57 93 102 Average Rating 39 | 3 6 10 11 22 29 36 35 50 79 81 On Entrance 28 | . 5 7 11 12 25 32 35 35 57 91 Naked Turns . | . . . . . . . . . . . Heaviest Build 78 | 8 18 25 27 42 49 48 45 66 78 76 Greatest Support 210 | 20 40 60 60 83 83 85 85 85 140 210 Greatest Overweight (x) 1 | . . . . . . . . . . 1 Average Overweight (x) . | . . . . . . . . . . . Largest Inventory Capacity 15 | 8 10 10 10 15 15 15 15 15 15 15 Average Capacity 12 | 7 9 10 10 10 15 15 15 15 15 13 Most Carried 15 | 5 7 10 8 10 10 10 5 15 15 10 Average Carried 9 | 3 4 8 7 9 8 8 5 10 14 8 Final Capacity 15 | 8 10 10 10 15 15 15 15 15 15 5 Final Carried 15 | 5 6 7 7 10 10 5 5 15 12 4 Class Distribution -------------------- 21% | Scavenger-Skirmisher 20% | Skirmisher 18% | Scavenger-Mutant 17% | Scavenger-Gunner 15% | Scavenger-Tank 7% | Mutant Dominant Class ---------------- Mutant | -10/Materials Scavenger-Mutant | -9/Materials Scavenger-Mutant | -9/Mines Scavenger-Gunner | -8/Materials Scavenger-Skirmisher | -7/Factory Scavenger-Tank | -7/Lower Caves Scavenger-Tank | -7/Lower Caves Scavenger-Skirmisher | -6/Factory Skirmisher | -5/Factory Skirmisher | -4/Factory Resources | -11 -10 -9 -9 -8 -7 -7 -7 -6 -5 -4 ----------- Run | Yrd Mat Mat Min Mat Fac Low Low Fac Fac Fac Matter Collected 2522 | 190 176 281 40 753 213 111 . 165 412 181 Remotely . | . . . . . . . . . . . Salvage Created 3593 | . 260 816 208 1088 313 217 . 152 324 215 Parts 195 | . 17 43 14 67 11 10 . 3 17 13 Haulers Intercepted 2 | . . . . 2 . . . . . . Recyclers Shooed 4 | . 3 . . . . . . . . 1 Parts Field Recycled . | . . . . . . . . . . . Retrieved Matter . | . . . . . . . . . . . Parts Self-Destructed 12 | . . . . . . 10 2 . . . Prevented 1 | . . . . . . . 1 . . . Kills | -11 -10 -9 -9 -8 -7 -7 -7 -6 -5 -4 ------- Run | Yrd Mat Mat Min Mat Fac Low Low Fac Fac Fac Combat Hostiles Destroyed 67 | . 8 15 7 17 1 4 . 2 11 2 Guns 42 | . 7 11 3 17 . 2 . . 2 . Cannons 24 | . . 4 4 . 1 2 . 2 9 2 AOE 1 | . 1 . . . . . . . . . Classes Destroyed 15 | . 5 4 1 1 1 . . 1 1 1 Worker 6 | . . 2 1 2 . . . . . 1 Builder 7 | . 1 . . 3 . . . . . 3 Hauler 2 | . . . . 2 . . . . . . Recycler 7 | . 1 . . 1 3 . . 1 . 1 Operator 1 | . . 1 . . . . . . . . Watcher 6 | . 1 2 . 2 1 . . . . . Swarmer 17 | . 5 . 4 3 . . . . 5 . Grunt 23 | . 3 8 2 8 . 2 . . . . Brawler 2 | . . . 1 1 . . . . . . Duelist 3 | . . 1 . 1 . 1 . . . . Sentry 13 | . . 6 . 4 . 1 . 1 . 1 Specialist 2 | . . . . . . . . . 2 . Hunter 1 | . . . . . . . . . . 1 Programmer 4 | . . . . . . . . 1 3 . Heavy 2 | . . . . . 1 . . . 1 . Best Kill Streak 10 | . 7 4 8 10 2 3 . 2 5 5 Combat Bots Only 7 | . 5 3 7 5 1 3 . 1 5 1 Max Kills in Single Turn 3 | . 2 1 1 2 1 1 . 1 3 3 Gunslinging 1 | . . . . 1 . . . . . . Exploded 1 | . 1 . . . . . . . . . Melee . | . . . . . . . . . . . Uniques/NPCs Destroyed . | . . . . . . . . . . . Combat | -11 -10 -9 -9 -8 -7 -7 -7 -6 -5 -4 -------- Run | Yrd Mat Mat Min Mat Fac Low Low Fac Fac Fac Hostile Shots Fired 863 | . 61 85 24 129 24 57 . 27 73 383 Missed 262 | . 17 19 3 36 8 27 . 2 18 132 Damage Taken 9216 | . 517 1080 195 1214 426 335 . 149 919 4381 Core 1757 | . 90 155 55 103 15 73 . 4 105 1157 Absorbed by Shields 535 | . . . . . . . . 65 311 159 Reduced by Siege Mode 115 | . . . . . . . . . 33 82 Core Remaining (%) 81 | 100 64 . 47 81 . . 87 99 89 . Volleys Fired 235 | . 33 51 13 71 13 16 . 6 18 14 Largest 4 | . 2 2 2 3 4 4 . 4 4 4 Hottest 260 | . 70 116 116 155 205 205 . 232 243 260 Shots Fired 638 | . 66 100 26 213 46 41 . 24 72 50 Gun 445 | . 66 71 13 207 23 28 . 6 18 13 Cannon 193 | . . 29 13 6 23 13 . 18 54 37 Launcher . | . . . . . . . . . . . Special . | . . . . . . . . . . . Kinetic 442 | . 51 52 . 173 26 24 . 16 69 31 Thermal 193 | . 15 48 26 40 20 17 . 8 3 16 Explosive . | . . . . . . . . . . . Electromagnetic 3 | . . . . . . . . . . 3 Robot Hit Streak 31 | . 11 17 6 9 5 8 . 6 27 31 Robot Miss Streak 9 | . 5 2 3 9 3 2 . 3 8 3 Penetration Max 1 | . . . . 1 . . . . 1 . Secondary Targets 4 | . 2 . . 2 . . . . . . Max Gunslinging Chain 1 | . 1 . . 1 . . . . . . Shots Hit Robots 399 | . 43 68 14 119 24 28 . 18 46 39 Core Hits 188 | . 17 33 9 44 7 9 . 13 30 26 Critical Kills 4 | . 1 . . 1 . . . . 2 . Critical Parts Destroyed 3 | . . 1 . 1 . . . . 1 . Critical Strikes 15 | . 2 3 . 4 . . . . 5 1 Burn 5 | . 1 2 . 2 . . . . . . Destroy 8 | . 1 1 . 2 . . . . 4 . Blast 2 | . . . . . . . . . 1 1 Melee Attacks . | . . . . . . . . . . . Impact . | . . . . . . . . . . . Slashing . | . . . . . . . . . . . Piercing . | . . . . . . . . . . . Sneak Attacks . | . . . . . . . . . . . Combat Hostiles . | . . . . . . . . . . . Follow-up Attacks . | . . . . . . . . . . . Damage Inflicted 7892 | . 409 1055 239 2332 517 585 . 387 1135 1233 Guns 4590 | . 409 708 100 2272 188 368 . 30 201 314 Cannons 3158 | . . 347 139 60 329 217 . 357 934 775 Explosions 144 | . . . . . . . . . . 144 Melee . | . . . . . . . . . . . Ramming . | . . . . . . . . . . . Kinetic 5333 | . 269 489 . 2048 243 291 . 314 1029 650 Thermal 2521 | . 140 566 239 284 274 294 . 73 106 545 Explosive . | . . . . . . . . . . . Electromagnetic 38 | . . . . . . . . . . 38 Impact . | . . . . . . . . . . . Slashing . | . . . . . . . . . . . Piercing . | . . . . . . . . . . . Highest Corruption 2 | . . 2 2 . . . . . 2 1 Average Corruption 1 | . . 1 2 . . . . . 1 1 Corruption Purged . | . . . . . . . . . . . Corruption Blocked . | . . . . . . . . . . . Effects 11 | . . 5 . . . . . . 6 . Message Errors 5 | . . 2 . . . . . . 3 . Matter Fused 1 | . . 1 . . . . . . . . Heat Flow Errors 1 | . . . . . . . . . 1 . Energy Discharges 1 | . . 1 . . . . . . . . Data Loss (minor) 3 | . . 1 . . . . . . 2 . Overload Shots . | . . . . . . . . . . . Overflow Damage 50 | . . . . 4 15 . . . 1 30 Projectiles 31 | . . . . 4 15 . . . 1 11 Explosions 19 | . . . . . . . . . . 19 Melee . | . . . . . . . . . . . Knockbacks 21 | . . . . 1 . . . . 11 9 Impact . | . . . . . . . . . . . Kinetic 21 | . . . . 1 . . . . 11 9 Secondary . | . . . . . . . . . . . Self-Inflicted Damage 49 | . . . . . . . . . . 49 Shots 1 | . . . . . . . . . . 1 Rammed . | . . . . . . . . . . . Targets Rammed . | . . . . . . . . . . . Kicked . | . . . . . . . . . . . Crushed . | . . . . . . . . . . . Highest Temperature 369 | . 70 207 120 148 240 369 . 204 169 273 Average Temperature 60 | . 24 79 49 30 85 147 . 69 38 74 Received Heat Transfer 1821 | . 102 441 . 306 . 147 . 12 . 813 Effects 5 | . . . . . . 2 . . . 3 Energy Bleed 2 | . . . . . . 2 . . . . Interference 3 | . . . . . . . . . . 3 Siege Activations 3 | . . . . . . . . . 2 1 Total Turns 56 | . . . . . . . . . 36 20 Longest Duration 24 | . . . . . . . . . 24 20 Robots Corrupted . | . . . . . . . . . . . Combat Hostiles . | . . . . . . . . . . . Parts Fried . | . . . . . . . . . . . Impact Corruptions . | . . . . . . . . . . . Robots Melted . | . . . . . . . . . . . Combat Hostiles . | . . . . . . . . . . . Parts Melted 14 | . 2 5 2 1 2 1 . . . 1 Heat Transferred 5564 | . 481 1443 555 777 444 518 . 111 225 1010 Parts Sabotaged . | . . . . . . . . . . . Parts Stolen . | . . . . . . . . . . . Parts Stripped . | . . . . . . . . . . . Power Chain Reactions 1 | . . . . . . . . . . 1 Alert | -11 -10 -9 -9 -8 -7 -7 -7 -6 -5 -4 ------- Run | Yrd Mat Mat Min Mat Fac Low Low Fac Fac Fac Peak Influence 449 | . 272 398 276 449 236 . . 45 108 162 Initial 178 | . . 51 96 107 178 . . 9 21 44 Average 127 | . 149 163 219 287 204 . . 22 32 77 Maximum Alert Level 2 | . 1 1 1 2 1 . . . . . Low Security (%) 71 | 100 66 67 29 26 18 . . 100 100 100 Level 1 24 | . 33 32 70 57 81 . . . . . Level 2 3 | . . . . 16 . . . . . . Level 3 . | . . . . . . . . . . . Level 4 . | . . . . . . . . . . . Level 5 . | . . . . . . . . . . . High Security . | . . . . . . . . . . . Max Security . | . . . . . . . . . . . Squads Dispatched 13 | . 1 1 . 1 1 . . 1 4 4 Investigation 1 | . . . . 1 . . . . . . Extermination 2 | . . . . . . . . 1 1 . Reinforcement 10 | . 1 1 . . 1 . . . 3 4 Assault . | . . . . . . . . . . . Garrison . | . . . . . . . . . . . Intercept . | . . . . . . . . . . . Searches Triggered . | . . . . . . . . . . . Construction Impeded 1 | . . . . . . . . . . 1 Haulers Reinforced . | . . . . . . . . . . . Active Scanning Responses . | . . . . . . . . . . . Cargo Convoy Interrupts 1 | . . . . . . . . . 1 . Stealth | -11 -10 -9 -9 -8 -7 -7 -7 -6 -5 -4 --------- Run | Yrd Mat Mat Min Mat Fac Low Low Fac Fac Fac Distress Signals 8 | . . 3 . . . . . 1 2 2 Communications Jammed . | . . . . . . . . . . . Distress Signals . | . . . . . . . . . . . Times Spotted 108 | . 12 25 7 24 5 4 . 3 12 16 Peak Tracking Total 13 | . 5 7 4 5 3 3 . 2 5 13 Tactical Retreats 6 | . 2 . . 2 . . . 1 . 1 Traps | -11 -10 -9 -9 -8 -7 -7 -7 -6 -5 -4 ------- Run | Yrd Mat Mat Min Mat Fac Low Low Fac Fac Fac Traps Triggered 6 | . . 3 . . . . . 2 1 . Indirectly . | . . . . . . . . . . . Trap Hack Attempts . | . . . . . . . . . . . Triggered . | . . . . . . . . . . . Disarmed . | . . . . . . . . . . . Reprogrammed . | . . . . . . . . . . . Reused . | . . . . . . . . . . . Traps Extracted . | . . . . . . . . . . . Installed . | . . . . . . . . . . . Triggered 2 | . . . . . . . 1 . 1 . Machines | -11 -10 -9 -9 -8 -7 -7 -7 -6 -5 -4 ---------- Run | Yrd Mat Mat Min Mat Fac Low Low Fac Fac Fac Machines Disabled 2 | . . . . 2 . . . . . . Max in Single Turn 1 | . . . . 1 . . . . . . Garrison Access 1 | . . . . . . . . . 1 . Machines Repaired . | . . . . . . . . . . . Machines Dismantled . | . . . . . . . . . . . Machines Sabotaged . | . . . . . . . . . . . Overloaded Fab Kills . | . . . . . . . . . . . Hacking | -11 -10 -9 -9 -8 -7 -7 -7 -6 -5 -4 --------- Run | Yrd Mat Mat Min Mat Fac Low Low Fac Fac Fac Machines Accessed 12 | . 1 2 . 3 2 . . 2 1 1 Terminals 10 | . 1 2 . 3 1 . . 2 . 1 Fabricators . | . . . . . . . . . . . Repair Stations . | . . . . . . . . . . . Recycling Units . | . . . . . . . . . . . Scanalyzers . | . . . . . . . . . . . Garrison Access 2 | . . . . . 1 . . . 1 . Total Hacks 20 | . 1 3 . 7 3 . . 4 1 1 Successful 7 | . 1 1 . 1 . . . 2 1 1 Failed 13 | . . 2 . 6 3 . . 2 . . Catastrophic 2 | . . 1 . 1 . . . . . . Database Lockouts . | . . . . . . . . . . . Manual 1 | . . . . 1 . . . . . . Terminals 17 | . 1 3 . 7 1 . . 4 . 1 Fabricators . | . . . . . . . . . . . Repair Stations . | . . . . . . . . . . . Recycling Units . | . . . . . . . . . . . Scanalyzers . | . . . . . . . . . . . Garrison Access 3 | . . . . . 2 . . . 1 . Terminal Hacks 6 | . 1 1 . 1 . . . 2 . 1 Record 2 | . . . . . . . . 2 . . Open DSF 1 | . . . . . . . . . . 1 Unreport Threat 1 | . 1 . . . . . . . . . Locate Traps 1 | . . . . 1 . . . . . . Zone Layout 1 | . . 1 . . . . . . . . Fabricator Hacks . | . . . . . . . . . . . Repair Station Hacks . | . . . . . . . . . . . Recycling Unit Hacks . | . . . . . . . . . . . Scanalyzer . | . . . . . . . . . . . Garrison Access Hacks 1 | . . . . . . . . . 1 . Seal Access 1 | . . . . . . . . . 1 . Unauthorized Hacks . | . . . . . . . . . . . Terminals . | . . . . . . . . . . . Fabricators . | . . . . . . . . . . . Repair Stations . | . . . . . . . . . . . Recycling Units . | . . . . . . . . . . . Scanalyzers . | . . . . . . . . . . . Garrison Access . | . . . . . . . . . . . Data Cores Recovered . | . . . . . . . . . . . Used . | . . . . . . . . . . . Hacking Detections 9 | . . 2 . 3 2 . . 2 . . Full Trace Events 1 | . . . . 1 . . . . . . Feedback Events . | . . . . . . . . . . . Feedback Blocked . | . . . . . . . . . . . Robot Schematics Acquired . | . . . . . . . . . . . Robots Built . | . . . . . . . . . . . Authchips . | . . . . . . . . . . . Time . | . . . . . . . . . . . Total Robot Build Rating . | . . . . . . . . . . . Part Schematics Acquired . | . . . . . . . . . . . Parts Built . | . . . . . . . . . . . Authchips . | . . . . . . . . . . . Time . | . . . . . . . . . . . Total Part Build Rating . | . . . . . . . . . . . Parts Repaired . | . . . . . . . . . . . Time . | . . . . . . . . . . . Parts Recycled . | . . . . . . . . . . . Recycled Matter . | . . . . . . . . . . . Retrieved Matter . | . . . . . . . . . . . Retrieved Components . | . . . . . . . . . . . Parts Scanalyzed . | . . . . . . . . . . . Part Schematics Acquired . | . . . . . . . . . . . Parts Damaged . | . . . . . . . . . . . Bothacking | -11 -10 -9 -9 -8 -7 -7 -7 -6 -5 -4 ------------ Run | Yrd Mat Mat Min Mat Fac Low Low Fac Fac Fac Used RIF Installer . | . . . . . . . . . . . Robots Hacked . | . . . . . . . . . . . Non-combat . | . . . . . . . . . . . Combat . | . . . . . . . . . . . Robot Hacks Applied . | . . . . . . . . . . . Relay Couplers Released . | . . . . . . . . . . . Fabnet Peak Effective % . | . . . . . . . . . . . Robots Rewired . | . . . . . . . . . . . Allies Hacked . | . . . . . . . . . . . Hacks Repelled . | . . . . . . . . . . . Allies | -11 -10 -9 -9 -8 -7 -7 -7 -6 -5 -4 -------- Run | Yrd Mat Mat Min Mat Fac Low Low Fac Fac Fac Total Allies . | . . . . . . . . . . . Largest Group . | . . . . . . . . . . . Highest-Rated Group . | . . . . . . . . . . . Highest-Rated Ally . | . . . . . . . . . . . Total Orders . | . . . . . . . . . . . Ally Attacks . | . . . . . . . . . . . Total Damage . | . . . . . . . . . . . Kills . | . . . . . . . . . . . Allies Corrupted . | . . . . . . . . . . . Allies Melted . | . . . . . . . . . . . Intel | -11 -10 -9 -9 -8 -7 -7 -7 -6 -5 -4 ------- Run | Yrd Mat Mat Min Mat Fac Low Low Fac Fac Fac Robot Analysis Total . | . . . . . . . . . . . Derelict Logs Recovered 1 | . . . . . . 1 . . . . Drone Launches . | . . . . . . . . . . . Drone Recoveries . | . . . . . . . . . . . Exploration | -11 -10 -9 -9 -8 -7 -7 -7 -6 -5 -4 ------------- Run | Yrd Mat Mat Min Mat Fac Low Low Fac Fac Fac Turns Passed 5712 | 57 269 943 71 982 223 614 272 975 1046 260 Spaces Moved 2797 | 47 108 422 17 415 107 355 175 547 449 155 Core 87 | 19 . . . . . . . . . 68 Treads 2645 | . 71 422 17 415 107 355 175 547 449 87 Legs 65 | 28 37 . . . . . . . . . Wheels . | . . . . . . . . . . . Hover . | . . . . . . . . . . . Flight . | . . . . . . . . . . . Fastest Speed 50 | 50 120 160 160 160 160 155 156 155 156 50 Average Speed 153 | 91 146 160 160 160 160 156 156 155 157 113 Slowest Speed 250 | 120 160 160 160 160 160 160 156 156 160 250 Overloaded Moves . | . . . . . . . . . . . Propulsion Burnouts . | . . . . . . . . . . . Robots Hopped . | . . . . . . . . . . . Cave-ins Triggered . | . . . . . . . . . . . Exploration Rate (%) 23 | 3 33 42 7 41 4 68 19 13 12 11 Regions Visited 10 Branch Regions 3 Pre-discovered Areas . | . . . . . . . . . . . Known Exits Taken 8 | . . 1 1 1 1 1 1 1 1 . Unknown Exits Taken 2 | 1 1 . . . . . . . . . Scrap Searched 1 | . . . . . . 1 . . . . Spaces Dug . | . . . . . . . . . . . Terrain Destroyed 27 | . . . . 7 1 1 . 1 9 8 Melee . | . . . . . . . . . . . Projectile 24 | . . . . 5 1 1 . 1 9 7 AOE 1 | . . . . . . . . . . 1 Terrain Rammed . | . . . . . . . . . . . Walls Destroyed . | . . . . . . . . . . . Machines Disabled . | . . . . . . . . . . . Actions | -11 -10 -9 -9 -8 -7 -7 -7 -6 -5 -4 --------- Run | Yrd Mat Mat Min Mat Fac Low Low Fac Fac Fac Total 3716 | 60 163 594 35 576 127 384 174 653 746 204 Wait 463 | . 4 67 . 48 . . . 70 247 27 Move 2787 | 46 107 421 16 414 106 354 174 546 448 155 Hop . | . . . . . . . . . . . Pick Up 91 | 9 8 24 2 16 3 3 . 18 8 . Fast Attach 3 | 1 . . . 2 . . . . . . Attach 44 | 4 3 10 . 5 2 3 . 5 5 7 Detach 1 | . . . . . . . . . 1 . Swap 39 | . 4 8 2 8 2 4 . 5 6 . Drop 53 | . 4 13 2 12 1 4 . 3 13 1 Fire 235 | . 33 51 13 71 13 16 . 6 18 14 Melee . | . . . . . . . . . . . Ram . | . . . . . . . . . . . Kick . | . . . . . . . . . . . Crush . | . . . . . . . . . . . Escape Stasis . | . . . . . . . . . . . Rewire . | . . . . . . . . . . . Trap . | . . . . . . . . . . . Miscellaneous . | . . . . . . . . . . . Route ------- -11/Scrapyard -10/Materials -9/Materials -9/Mines -8/Materials -7/Factory -7/Lower Caves -7/Lower Caves -6/Factory -5/Factory -4/Factory History --------- Turn | Location | Event 9 | -11/Scrapyard | Discovered new exit (range 16) 58 | -11/Scrapyard | Entered Materials 269 | -10/Materials | Discovered new exit (range 12) 300 | -10/Materials | Build established: Mutant 327 | -10/Materials | Entered another Materials area 327 | -9/Materials | Evolved 2 slots: Propulsion x1, Utility x1 617 | -9/Materials | Build established: Scavenger-Mutant 1226 | -9/Materials | Discovered new exit (range 12) 1250 | -9/Materials | Identified exit to Mines 1270 | -9/Materials | Entered Mines 1275 | -9/Mines | Met a Derelict bent on vengeance 1306 | -9/Mines | Discovered new exit (range 7) 1317 | -9/Mines | Core integrity fell below 50% 1336 | -9/Mines | Identified exit to Materials 1337 | -9/Mines | Destroyed 7 combat bots 1341 | -9/Mines | Entered Materials 1341 | -8/Materials | Evolved 2 slots: Propulsion x1, Weapon x1 1616 | -8/Materials | Build established: Scavenger-Gunner 2283 | -8/Materials | Discovered new exit (range 15) 2306 | -8/Materials | Identified exit to Factory 2323 | -8/Materials | Entered Factory 2323 | -7/Factory | Evolved 2 slots: Utility x1, Weapon x1 2478 | -7/Factory | Discovered new exit (range 16) 2544 | -7/Factory | Identified exit to Lower Caves 2546 | -7/Factory | Entered Lower Caves 2743 | -7/Lower Caves | Identified exit to Lower Caves 2848 | -7/Lower Caves | Build established: Scavenger-Tank 2989 | -7/Lower Caves | Attracted the attention of an 0b10 checkpoint 3160 | -7/Lower Caves | Entered another Lower Caves area 3230 | -7/Lower Caves | Encountered a Warlord checkpoint 3238 | -7/Lower Caves | Discovered new exit (range 9) 3249 | -7/Lower Caves | Identified exit to Factory 3432 | -7/Lower Caves | Entered Factory 3432 | -6/Factory | Evolved 2 slots: Utility x2 3730 | -6/Factory | Build established: Scavenger-Skirmisher 4272 | -6/Factory | Discovered new exit (range 15) 4343 | -6/Factory | Identified exit to Factory 4407 | -6/Factory | Entered another Factory area 4407 | -5/Factory | Evolved 2 slots: Power x1, Utility x1 4774 | -5/Factory | Build established: Skirmisher 5418 | -5/Factory | Discovered new exit (range 5) 5423 | -5/Factory | Cargo convoy interrupted 5445 | -5/Factory | Identified exit to Factory 5453 | -5/Factory | Entered another Factory area 5453 | -4/Factory | Evolved 2 slots: Propulsion x2 5507 | -4/Factory | Identified exit to DSF 5681 | -4/Factory | Core integrity fell below 50% 5696 | -4/Factory | Core integrity fell below 20% 5713 | -4/Factory | Lost 20 parts (2p4n6u8w) 5713 | -4/Factory | Destroyed by X-77 Beamer with Gatling Laser Last Messages --------------- Penetrated by Slug. Adv. Signal Interpreter destroyed. U-05 Engineer builds a Wall. P-70 Sage resets H-71 Marshal, system corruption cleaned. Adv. Cooling System destroyed. Knocked back. K-01 Serf collects debris. Slug penetrates G-67 Veteran. Penetrated by Slug. Graphene Brace destroyed. Knocked back. K-01 Serf collects debris. ALERT: Hostiles spotted, dispatching reinforcements to Terminal F008. U-05 Engineer works on Subcomponent Replicator. K-01 Serf cleans the Terminal. Terminal disabled. K-01 Serf collects debris. K-01 Serf cleans the Nuclear Reactor. Map ----- +----------------------------------------------------+ | ?????????????????????????????????????????????????? | | ?????????????????????????????????????????????????? | | ?????????????????????????????????????????????????? | | ?????????????????????????????????????????????????? | | ???????????????????????? ??????????????????????? | | ???????????????????????? ??????????????????????? | | ????????????????????????u ??????????????????????? | | ???????????????????????? ??????????????????????? | | ???????????????????????? ??????????????????????? | | ???????????????????????? ??????????????????????? | | ???????????????????????? ??????????????????????? | | ???????????????????????? ??????????????????????? | | ???????????????????????? ??????????????????????? | | ???????????????????????? ??????????????????????? | | ???????????????????????? ??????????????????????? | | ???????????????????????? ??????????????????????? | | ???????????????????????? ??????????????????????? | | ???????????????????????? ??????????????????????? | | ????????????????????????# #??????????????????????? | | ????????????????????????# #??????????????????????? | | ????????????????????????# #??????????????????????? | | ????????????????????????# #??????????????????????? | | ????????????????????????# #??????????????????????? | | ????????????????????????# #??????????????????????? | | ?????????################g#??????????????????????? | | ?????????# @#??????????????????????? | | ?????????# """ """ " " #??????????????????????? | | ?????????# """ """ "T" #??????????????????????? | | ?????????# """ """ A #??????????????????????? | | ?????????# k x#??????????????????????? | | ?????????# """ """ """k#??????????????????????? | | ?????????# """ """x""" #??????????????????????? | | ?????????# """ """o""" #??????????????????????? | | ?????????#* ! p #??????????????????????? | | ?????????########+#####/###??????????????????????? | | ??????????????# ###g##???????????????????????? | | ??????????????# #???????????????????????? | | ??????????????# g #????############???????? | | ??????????##### """ ###### #???????? | | ???? ????+ ""F""g + ! #???????? | | ???? ?????### "" "" # #???????? | | ???? =???????# # """ """ #???????? | | ???? ???????# # """ """ #???????? | | ???? ???????# # """ """ [#???????? | | ???" ???????# * # #???????? | | ???????# + """ """ #???????? | | """" ????????# # """ """ =#???????? | | """" ????????# # """ """ #???????? | | """" ????????# # !#???????? | | """" ????????# ####+##### #???????? | +----------------------------------------------------+ Best States ------------- Heat Dissipation 88 Energy Generation 31 Energy Capacity 360 Matter Stores 300 Matter Capacity 300 Sight Range 22 Robot Scan Range 16 Terrain Scan Density 10 Evasion (%) 55 Recoil Reduction 6 Item Schematics ----------------- None Robot Schematics ------------------ None Fabricated ------------ Nothing Alien Tech Used ----------------- None Achievements -------------- I Spy Challenges ------------ None Game ------ Seed DiametricSigixProtomatter Manual? 0 Play Time 00:59:21 Cumulative 9.9 hours Start 2024.12.07 @ 03:36:54 End 2024.12.07 @ 04:33:33 Sessions 1 Manual Loads 0 Difficulty Rogue Special Mode None Game No. 13 Rogue 13 Adventurer 0 Explorer 0 Win Type - Total 0 Types 0/0/0/0/0/0/0/0/0 Lore% 9 Gallery% 19 Achievement% 16 Wizard Run 0 Options --------- Layout 1 ASCII 0 Keyboard 0 Movement Mouse Keybinds 0 Fullscreen 1 Font 24/Smallcaps Map View 50x35 Zoom Use 0% Tactical HUD 0 Map Filters NONE Filters NONE Steam 1 RUN: d4a5d4b2-3cce-4ff5-a5b4-dfc007604a55